Workbook

Sheet Coût Energie
B2: Quantité d'eau | D2: 120 | E2: m3 | F2: =+D2 -> 120 | G2: m3 | H2: =+F2 -> 120 | I2: m3 | J2: =F2 -> 120 | K2: m3 | L2: =F2 -> 120 | M2: m3
B3: Energie | D3: =+F3 -> 218 | E3: kWh/jour | F3: 218 | G3: kWh/jour | H3: =+F3 -> 218 | I3: kWh/jour | J3: =F3 -> 218 | K3: kWh/jour | L3: =+F3 -> 218 | M3: kWh/jour
B4: Source primaire | D4: GASOIL | F4: PV | H4: ELECTRICITE | J4: BUTANE subventionné | L4: BUTANE non subventionné
B5: Rendement | D5: 0.3 | F5: 1 | H5: 1 | J5: 0.32 | L5: 0.32
B6: Energie primaire consommée | D6: =+D3/D5 -> 726.6666667 | E6: kWh | F6: =+F3/F5 -> 218 | G6: kWh | H6: =+H3/H5 -> 218 | I6: kWh | J6: =+J3/J5 -> 681.25 | K6: kWh | L6: =+L3/L5 -> 681.25 | M6: kWh
B7: Contenu énergetique | D7: =10000*4.18/3600*0.8 -> 9.288888889 | E7: kWh/litre | F7: 1 | G7: kWh/kWh | H7: 1 | I7: kWh/kWh | J7: =11500*4.18/3600*12 -> 160.2333333 | K7: kWh/Bouteille | L7: =11500*4.18/3600*12 -> 160.2333333 | M7: kWh/Bouteille
B8: Quantité réellement consommée | D8: =D6/D7 -> 78.22966507 | E8: litre | F8: =F6/F7 -> 218 | G8: kWh | H8: =H6/H7 -> 218 | I8: kWh | J8: =J6/J7 -> 4.251612232 | K8: Bouteille | L8: =L6/L7 -> 4.251612232 | M8: Bouteille
B9: Prix de l'énergie | D9: 9.5 | E9: DH/litre | F9: 0 | G9: DH/kWh | H9: 0.9 | I9: DH/kWh | J9: 42 | K9: DH/Bouteille | L9: 126 | M9: DH/Bouteille
B10: Facture énergétique journalière | D10: =D9*D8 -> 743.1818182 | E10: DH/jour | F10: =F9*F8 -> 0 | G10: DH/jour | H10: =H9*H8 -> 196.2 | I10: DH/jour | J10: =J9*J8 -> 178.5677138 | K10: DH/jour | L10: =L9*L8 -> 535.7031413 | M10: DH/jour
B11: Facture énergétique mensuelle | D11: =D10*30 -> 22295.45455 | E11: DH/mois | F11: =F10*30 -> 0 | G11: DH/mois | H11: =H10*30 -> 5886 | I11: DH/mois | J11: =J10*30 -> 5357.031413 | K11: DH/mois | L11: =L10*30 -> 16071.09424 | M11: DH/mois
B12: Coût unitaire de l'eau - Exploitation | D12: =D10/D2 -> 6.193181818 | E12: DH/m3 | F12: =F10/F2 -> 0 | G12: DH/m3 | H12: =H10/H2 -> 1.635 | I12: DH/m3 | J12: =J10/J2 -> 1.488064281 | K12: DH/m3 | L12: =L10/L2 -> 4.464192844 | M12: DH/m3
B13: Durée d'exploitation | D13: =+F13 -> 10 | E13: ans | F13: 10 | G13: ans | H13: =+F13 -> 10 | I13: ans | J13: =F13 -> 10 | K13: ans | L13: =F13 -> 10 | M13: ans
B14: Coût d'exploitation | D14: =D10*30*12*D13 -> 2675454.545 | E14: DH | F14: =F10*30*12*F13 -> 0 | G14: DH | H14: =H10*30*12*H13 -> 706320 | I14: DH | J14: =J10*30*12*J13 -> 642843.7695 | K14: DH | L14: =L10*30*12*L13 -> 1928531.309 | M14: DH
B15: Prix de la connection | D15: 0 | E15: DH | F15: 0 | G15: DH | H15: 280000 | I15: DH | J15: 0 | K15: DH | L15: 0 | M15: DH
B16: Prix de l'installation | D16: =(51750+72000/2)*(1+0.05*(D13-1)) -> 127237.5 | E16: DH | F16: 600000 | G16: DH | H16: 50000 | I16: DH | J16: 70000 | K16: DH | L16: 70000 | M16: DH
B17: Coût total | D17: =+D16+D14+D15 -> 2802692.045 | E17: DH | F17: =+F16+F14+F15 -> 600000 | G17: DH | H17: =+H16+H14+H15 -> 1036320 | I17: DH | J17: =+J16+J14+J15 -> 712843.7695 | K17: DH | L17: =+L16+L14+L15 -> 1998531.309 | M17: DH
B18: Coût unitaire de l'eau - Total | D18: =D17/(D2*D13*365) -> 6.398840286 | E18: DH/m3 | F18: =F17/(F2*F13*365) -> 1.369863014 | G18: DH/m3 | H18: =H17/(H2*H13*365) -> 2.366027397 | I18: DH/m3 | J18: =J17/(J2*J13*365) -> 1.627497191 | K18: DH/m3 | L18: =L17/(L2*L13*365) -> 4.562856869 | M18: DH/m3
B21: ANNEE | C21: 1 | D21: 2 | E21: 3 | F21: 4 | G21: 5 | H21: 6 | I21: 7 | J21: 8 | K21: 9 | L21: 10
B22: Coût cumulé GASOIL | C22: =+$D$15+$D$16+C21*12*$D$11 -> 394782.9545 | D22: =+$D$15+$D$16+D21*12*$D$11 -> 662328.4091 | E22: 929873.8636 | F22: 1197419.318 | G22: 1464964.773 | H22: 1732510.227 | I22: 2000055.682 | J22: 2267601.136 | K22: 2535146.591 | L22: 2802692.045
B23: Coût cumulé ELECTRICITE | C23: =+$H$15+$H$16+C21*12*$H$11 -> 400632 | D23: 471264 | E23: 541896 | F23: 612528 | G23: 683160 | H23: 753792 | I23: 824424 | J23: 895056 | K23: 965688 | L23: 1036320
B24: Coût cumulé PV | C24: =+$F$15+$F$16+C21*12*$F$11 -> 600000 | D24: 600000 | E24: 600000 | F24: 600000 | G24: 600000 | H24: 600000 | I24: 600000 | J24: 600000 | K24: 600000 | L24: 600000
B25: Coût cumulé BUTANE subventionné | C25: =+$J$15+$J$16+C21*12*$J$11 -> 134284.377 | D25: 198568.7539 | E25: 262853.1309 | F25: 327137.5078 | G25: 391421.8848 | H25: 455706.2617 | I25: 519990.6387 | J25: 584275.0156 | K25: 648559.3926 | L25: 712843.7695
B26: Coût cumulé BUTANE non subventionné | C26: =+$L$15+$L$16+C21*12*$L$11 -> 262853.1309 | D26: =+$L$15+$L$16+D21*12*$L$11 -> 455706.2617 | E26: =+$L$15+$L$16+E21*12*$L$11 -> 648559.3926 | F26: =+$L$15+$L$16+F21*12*$L$11 -> 841412.5234 | G26: 1034265.654 | H26: 1227118.785 | I26: 1419971.916 | J26: 1612825.047 | K26: 1805678.178 | L26: 1998531.309
B27: Différence PV-GASOIL | C27: =+C24-C22 -> 205217.0455 | D27: -62328.40909 | E27: -329873.8636 | F27: -597419.3182 | G27: -864964.7727 | H27: -1132510.227 | I27: -1400055.682 | J27: -1667601.136 | K27: -1935146.591 | L27: -2202692.045
B28: Différence PV-ELECTRICITE | C28: =+C24-C23 -> 199368 | D28: 128736 | E28: 58104 | F28: -12528 | G28: -83160 | H28: -153792 | I28: -224424 | J28: -295056 | K28: -365688 | L28: -436320
B29: Différence PV-BUTANE subventionné | C29: =C24-C25 -> 465715.623 | D29: =D24-D25 -> 401431.2461 | E29: =E24-E25 -> 337146.8691 | F29: =F24-F25 -> 272862.4922 | G29: 208578.1152 | H29: 144293.7383 | I29: 80009.36135 | J29: 15724.9844 | K29: -48559.39255 | L29: -112843.7695
B30: Différence PV-BUTANE non subventionné | C30: =+C24-C26 -> 337146.8691 | D30: =+D24-D26 -> 144293.7383 | E30: =+E24-E26 -> -48559.39255 | F30: =+F24-F26 -> -241412.5234 | G30: -434265.6543 | H30: -627118.7851 | I30: -819971.916 | J30: -1012825.047 | K30: -1205678.178 | L30: -1398531.309
E32: Point mort en année
D33: GASOIL | E33: 2.14
D34: ELECTRICITE | E34: 3.82
D35: BUTANE 1 | E35: 8.24
D36: BUTANE 2 | E36: 2.75
